bitfinex-derivatives/quotes_ETHF0:USTF0_20240817
["timestamp","ask_amount","ask_price","bid_price","bid_amount"]
[1723934700689,0.00368208,2607.8,2607.7,18.72112644]
[1723934700886,0.00574955,2608.0,2607.9,2.87546]
[1723934701185,1.4448,2608.5,2608.4,1.43746]
[1723934701389,1.52793647,2608.5,2608.4,1.43746]
[1723934701684,1.52793647,2608.5,2608.3,1.43748]
[1723934701985,0.08313647,2608.4,2608.3,1.43748]
[1723934702584,1.18613647,2608.4,2608.3,1.43748]
[1723934704983,1.18613647,2608.4,2608.2,1.00372733]
[1723934705178,2.25477647,2608.3,2608.1,1.00372733]
[1723934705502,1.18615052,2608.2,2608.1,5.42986404]
[1723934705691,1.53105052,2608.2,2608.1,5.42986404]
[1723934705996,1.5310509,2608.2,2608.1,6.43359137]
[1723934706386,1.5310509,2608.2,2608.1,10.26799137]
[1723934706583,1.5310509,2608.2,2608.1,10.62399137]
[1723934707398,0.0831509,2608.2,2608.1,10.62399137]
[1723934707692,0.0831509,2608.2,2608.1,9.62026404]
[1723934708179,0.0831509,2608.2,2608.1,10.62257573]
[1723934709882,0.0831509,2608.2,2608.1,11.72557573]
[1723934710079,0.0831509,2608.2,2608.1,10.72326404]
[1723934710288,0.0831509,2608.2,2608.1,11.72512518]
[1723934710487,0.0831509,2608.2,2608.1,10.72326404]
[1723934710993,0.0831509,2608.2,2608.1,11.72508573]
[1723934711397,1.103,2608.4,2608.3,1.43751]
[1723934711692,1.18614143,2608.4,2608.3,1.43751]
[1723934712189,1.18614143,2608.4,2608.0,2.45622169]
[1723934712390,1.103,2608.2,2608.0,1.43768]
[1723934712590,0.08314143,2608.1,2608.0,1.43768]
[1723934712899,0.44114143,2608.1,2608.0,5.65710331]
[1723934713086,0.44114143,2608.1,2608.0,9.49150331]
[1723934714397,0.358,2608.1,2608.0,9.49150331]
[1723934716387,0.358,2608.1,2608.0,1.43768]
[1723934722893,2.89866,2608.1,2607.9,1.43773]
[1723934723190,1.461,2608.1,2607.9,1.43773]
[1723934723396,1.79564,2608.1,2607.9,1.43773]
[1723934723692,0.08310936,2608.0,2607.9,1.43773]
[1723934724701,0.358,2608.1,2608.0,1.43768]
[1723934724993,0.44110722,2608.1,2608.0,1.43768]
[1723934725592,0.358,2608.1,2608.0,1.43768]
[1723934725897,0.44110479,2608.1,2608.0,1.43768]
[1723934726296,0.44110479,2608.1,2608.0,1.77988]
[1723934728492,0.08310479,2608.1,2608.0,3.21756]
[1723934728695,0.37047188,2608.5,2608.4,1.43746]
[1723934728899,0.45357085,2608.5,2608.4,1.43746]
[1723934729097,4.28717085,2608.5,2608.4,1.43746]
[1723934729598,5.39017085,2608.5,2608.4,1.43746]
[1723934729798,5.39016697,2608.5,2608.4,1.43746]
[1723934730306,5.39016769,2608.5,2608.4,1.43746]
[1723934730493,6.82756769,2608.5,2608.4,1.43746]
[1723934733303,5.72456769,2608.5,2608.4,1.43746]
[1723934733695,6.82756769,2608.5,2608.4,1.43746]
[1723934734002,6.8276002,2608.5,2608.4,1.43746]
[1723934734192,6.8276002,2608.5,2608.3,1.43748]
[1723934734392,0.08312832,2608.4,2608.3,1.43748]
[1723934736704,1.52058832,2608.4,2608.3,1.43748]
[1723934736905,0.08312832,2608.4,2608.3,1.43748]
[1723934738105,2.91091188,2608.5,2608.4,1.43746]
[1723934738304,2.9940548,2608.5,2608.4,1.43746]
[1723934738496,6.8276548,2608.5,2608.4,1.43746]
[1723934739208,6.8276548,2608.5,2608.3,1.43748]
[1723934739410,0.08314292,2608.4,2608.3,1.43748]
[1723934741916,4.92134165,2608.5,2608.4,1.43746]
[1723934742211,5.00448453,2608.5,2608.4,1.43746]
[1723934742408,8.83808453,2608.5,2608.4,1.43746]
[1723934743931,6.82765476,2608.5,2608.4,1.43746]
[1723934744225,6.29764453,2608.5,2608.4,1.43746]
[1723934744422,2.46404453,2608.5,2608.4,1.43746]
[1723934744617,3.90144453,2608.5,2608.4,1.43746]
[1723934744813,1.89101476,2608.5,2608.4,1.80866]
[1723934745220,2.46404453,2608.5,2608.4,2.81048169]
[1723934745522,2.09634453,2608.5,2608.4,2.81048169]
[1723934746119,3.45060165,2608.5,2608.4,2.81048169]
[1723934746428,2.09633981,2608.5,2608.4,2.81048169]
[1723934748124,2.09633981,2608.5,2608.4,3.91348169]
[1723934748332,0.08591004,2608.5,2608.4,10.09949331]
[1723934748518,0.08591004,2608.5,2608.4,10.09945225]
[1723934749127,0.08591004,2608.5,2608.4,12.10802415]
[1723934749428,0.00574955,2608.6,2608.5,1.4374]
[1723934749729,2.01042977,2609.0,2608.9,1.43718]
[1723934749925,0.08309933,2609.0,2608.9,1.43718]
[1723934750129,0.08309933,2609.0,2608.9,3.16879103]
[1723934750328,5.26483977,2609.1,2608.9,2.50928]
[1723934750629,0.08292013,2609.0,2608.9,2.50928]
[1723934751726,0.35411025,2609.1,2609.0,1.43713]
[1723934751925,0.43702814,2609.1,2609.0,1.43713]
[1723934752429,0.08782814,2609.1,2609.0,1.43713]
[1723934754624,0.08782153,2609.1,2609.0,1.43713]
[1723934756537,1.19082153,2609.1,2609.0,1.43713]
[1723934756830,2.99609153,2609.1,2608.9,1.0721]
[1723934757135,0.08291128,2609.0,2608.9,2.50924]
[1723934758731,2.91319025,2609.1,2609.0,1.43713]
[1723934758939,2.99610622,2609.1,2609.0,1.43713]
[1723934759141,1.43713,2609.0,2608.9,0.3728]
[1723934759440,1.86474597,2609.0,2608.9,1.80998]
[1723934759738,2.96774597,2609.0,2608.9,1.80998]
[1723934759927,2.96774597,2609.0,2608.9,0.3728]
[1723934761334,2.96774597,2609.0,2608.9,1.80998]
[1723934761537,2.88483,2609.0,2608.9,1.80998]
[1723934761741,2.96774836,2609.0,2608.9,1.80998]
[1723934762336,1.43718,2608.9,2608.8,1.81102]
[1723934762540,1.43724,2608.8,2608.7,2.90756]
[1723934762725,1.52015836,2608.8,2608.7,2.90756]
[1723934762927,1.52015836,2608.8,2608.7,6.74116]
[1723934763137,0.08291836,2608.8,2608.7,6.74116]
[1723934764639,0.08291836,2608.8,2608.7,2.90756]
[1723934764832,0.08291836,2608.8,2608.7,6.74116]
[1723934765429,1.78542,2608.9,2608.7,6.74116]
[1723934765636,0.3482,2608.9,2608.8,1.43724]
[1723934765839,0.43111896,2608.9,2608.8,1.80234]
[1723934766041,0.0829186,2608.9,2608.8,1.4681]
[1723934766240,0.0829186,2608.9,2608.8,2.90534]
[1723934769954,0.00491025,2609.1,2609.0,1.43713]
[1723934770149,0.08782115,2609.1,2609.0,2.54013]
[1723934772043,1.52489115,2609.1,2609.0,1.43713]
[1723934772754,0.82202115,2609.1,2609.0,1.43713]
[1723934773646,0.73911025,2609.1,2609.0,1.43713]
[1723934773847,0.82201241,2609.1,2609.0,1.43713]
[1723934777954,0.82200348,2609.1,2609.0,1.43713]
[1723934778337,0.82200242,2609.1,2609.0,1.43713]
[1723934779655,2.25907242,2609.1,2608.9,3.5819]
[1723934779857,0.45159217,2609.0,2608.9,3.5819]
[1723934780055,0.45159217,2609.0,2608.9,5.01908]
[1723934780459,0.45159217,2609.0,2608.9,1.81128]
[1723934786349,0.45159217,2609.0,2608.8,1.103]
[1723934786350,1.43718,2608.9,2608.8,1.103]
[1723934786663,0.08289217,2608.9,2608.8,2.54024]
[1723934786851,0.08289217,2608.9,2608.8,2.88844]
[1723934787247,0.08289217,2608.9,2608.8,3.89245103]
[1723934787454,0.08289217,2608.9,2608.8,1.43724]
[1723934787655,0.08289217,2608.9,2608.8,1.103]
[1723934787857,1.52007217,2608.9,2608.8,1.103]
[1723934789564,1.43725,2608.8,2608.6,6.75212103]
[1723934789757,0.45799217,2608.7,2608.6,5.74811]
[1723934789962,0.80789217,2608.7,2608.6,5.74811]
[1723934790266,0.80788246,2608.7,2608.6,6.75212103]
[1723934790765,0.80788243,2608.7,2608.6,6.75212103]
[1723934794169,0.725,2608.7,2608.6,7.66485715]
[1723934794371,0.80787837,2608.7,2608.6,7.66485715]
[1723934796864,0.43277837,2608.7,2608.6,7.6647836]
[1723934797063,0.43277837,2608.7,2608.6,7.66478393]
[1723934798268,0.3499,2608.7,2608.6,7.66478393]
[1723934798571,0.43277827,2608.7,2608.6,7.66478393]
[1723934799573,0.43277827,2608.7,2608.6,9.17080047]
[1723934799766,0.43277827,2608.7,2608.6,7.66478393]
[1723934802474,0.08287827,2608.7,2608.6,7.66478393]
[1723934806066,0.08287827,2608.7,2608.6,5.74811]
[1723934806271,0.08287827,2608.7,2608.6,7.66474278]
[1723934806468,2.35432977,2608.9,2608.8,1.43724]
[1723934806673,2.43717442,2608.9,2608.8,2.54024]
[1723934806875,6.26997442,2608.9,2608.8,2.54024]
[1723934809481,7.70715442,2608.9,2608.8,2.54024]
[1723934810577,7.70711778,2608.9,2608.8,2.54024]
[1723934811368,6.26993778,2608.9,2608.8,2.54024]
[1723934811982,7.70711778,2608.9,2608.8,2.54024]
[1723934812669,5.69668801,2608.9,2608.8,2.54024]
[1723934813274,5.61388,2608.9,2608.8,2.54024]
[1723934814080,1.78108,2608.9,2608.8,2.54024]
[1723934814477,3.79150977,2608.9,2608.8,2.54024]
[1723934814673,1.78108,2608.9,2608.8,2.54024]
[1723934815177,5.61388,2608.9,2608.8,2.54024]
[1723934815682,5.69661676,2608.9,2608.8,2.54024]
[1723934816180,1.86381676,2608.9,2608.8,2.54024]
[1723934817482,0.08273676,2608.9,2608.8,2.54024]
[1723934817682,2.01534002,2609.1,2609.0,1.43713]
[1723934817879,2.01534002,2609.1,2609.0,2.44170675]
[1723934817880,0.08764546,2609.1,2609.0,2.44170675]
[1723934818080,0.00491025,2609.1,2609.0,4.64493]
[1723934818272,0.08764105,2609.1,2609.0,6.00338304]
[1723934818876,0.08764105,2609.1,2609.0,2.79558304]
[1723934821171,0.08770866,2609.1,2609.0,2.79558304]
[1723934824680,0.08766199,2609.1,2609.0,2.79558304]
[1723934825887,0.08766199,2609.1,2609.0,7.54019693]
[1723934826492,0.08766199,2609.1,2609.0,9.04621347]
[1723934826692,0.08766199,2609.1,2609.0,7.54019693]
[1723934828285,0.08766199,2609.1,2609.0,6.62807288]
[1723934828487,0.08766199,2609.1,2609.0,7.54012397]
[1723934828790,0.08766086,2609.1,2609.0,6.62806904]
[1723934828998,0.08766086,2609.1,2609.0,6.62806741]
[1723934829299,0.08766069,2609.1,2609.0,6.62801328]
[1723934829990,0.08766069,2609.1,2609.0,5.62383]
[1723934830191,0.08766069,2609.1,2609.0,6.6280177]
[1723934830387,0.08766069,2609.1,2609.0,2.7952177]
[1723934830584,0.08766069,2609.1,2609.0,2.79516253]
[1723934830785,0.08766069,2609.1,2609.0,3.70738549]
[1723934830986,0.08766069,2609.1,2609.0,2.79516937]
[1723934833001,0.08767686,2609.1,2609.0,2.79516937]
[1723934833890,0.45927686,2609.1,2609.0,2.79516937]
[1723934840310,0.37651025,2609.1,2609.0,2.79516937]
[1723934840509,0.45933457,2609.1,2609.0,2.79516937]
[1723934841502,0.45932773,2609.1,2609.0,2.79516937]
[1723934847617,0.45932773,2609.1,2609.0,2.79505893]
[1723934848019,0.45932773,2609.1,2609.0,2.79505383]
[1723934848220,0.45932773,2609.1,2609.0,1.79103]
[1723934848413,0.08772773,2609.1,2609.0,2.79510395]
[1723934848605,0.08772773,2609.1,2609.0,6.65050934]
[1723934848920,0.08772773,2609.1,2609.0,5.1444928]
[1723934849103,0.08772773,2609.1,2609.0,5.4561143]
[1723934850318,0.08772773,2609.1,2609.0,5.45594936]
[1723934850817,0.08772773,2609.1,2609.0,8.66374936]
[1723934851211,0.08772773,2609.1,2609.0,6.91499786]
[1723934852304,0.08772773,2609.1,2609.0,8.35212786]
[1723934852803,0.00491025,2609.1,2609.0,10.36069976]
[1723934853009,0.08773296,2609.1,2609.0,10.36069976]
[1723934853211,0.08773296,2609.1,2609.0,8.35212786]
[1723934853406,0.08773296,2609.1,2609.0,14.19349976]
[1723934853615,0.00574955,2609.3,2609.2,2.87404]
[1723934853817,0.00574955,2609.3,2609.2,5.89320786]
[1723934854524,0.00959139,2609.3,2609.2,5.89625886]
[1723934854824,0.00959139,2609.3,2609.2,5.896078]
[1723934856319,0.00959139,2609.3,2609.2,5.96431635]
[1723934858125,0.00959139,2609.3,2609.2,5.96438767]
[1723934859336,0.00959139,2609.3,2609.2,7.66691338]
[1723934859522,0.00959139,2609.3,2609.2,9.1720791]
[1723934860721,0.00959139,2609.3,2609.2,9.48337593]
[1723934861729,0.00959139,2609.3,2609.2,9.1720791]
[1723934863823,0.00959139,2609.3,2609.2,9.17220021]
[1723934865626,0.09225933,2609.3,2609.2,9.17220021]
[1723934865817,0.09225933,2609.3,2609.2,5.96440021]
[1723934866011,0.09225933,2609.3,2609.2,9.17220021]
[1723934868422,0.09225933,2609.3,2609.2,9.17218612]
[1723934868628,0.09225933,2609.3,2609.2,5.96438612]
[1723934869026,0.09225933,2609.3,2609.2,9.17218612]
[1723934869212,0.09226456,2609.3,2609.2,9.17218612]
[1723934871024,0.09226456,2609.3,2609.2,10.60920612]
[1723934871229,0.09226456,2609.3,2609.2,9.1040404]
[1723934873124,0.09226456,2609.3,2609.2,9.10390397]
[1723934873317,0.00959139,2609.3,2609.2,9.10390397]
[1723934873516,0.09226794,2609.3,2609.2,9.10390397]
[1723934876229,0.09226794,2609.3,2609.2,10.60917954]
[1723934876532,0.09226794,2609.3,2609.2,9.10390397]
[1723934877134,0.09226794,2609.3,2609.2,7.66688397]
[1723934877637,0.09226154,2609.3,2609.2,7.66688397]
[1723934877935,0.09226151,2609.3,2609.2,7.66688397]
[1723934879041,0.09226081,2609.3,2609.2,7.66688397]
[1723934879228,0.09226081,2609.3,2609.2,6.56388397]
[1723934879430,0.09226081,2609.3,2609.2,9.17221917]
[1723934880029,0.09226081,2609.3,2609.2,7.66688397]
[1723934881024,0.09226081,2609.3,2609.2,7.2562062]
[1723934881231,0.09226081,2609.3,2609.2,9.17236721]
[1723934881935,0.09226081,2609.3,2609.2,9.17236152]
[1723934882233,0.09226081,2609.3,2609.2,5.750871]
[1723934882435,3.92506081,2609.3,2609.2,2.10983998]
[1723934882640,5.36202081,2609.3,2609.2,1.106051]
[1723934882834,3.92506081,2609.3,2609.2,2.543071]
[1723934883029,3.92506081,2609.3,2609.2,3.54685998]
[1723934883229,4.28226081,2609.3,2609.2,2.543071]
[1723934883436,4.62926081,2609.3,2609.2,3.54685998]
[1723934884342,4.54659139,2609.3,2609.2,3.54685998]
[1723934884538,4.62925448,2609.3,2609.2,3.54685998]
[1723934884730,0.79645448,2609.3,2609.2,3.54685998]
[1723934885826,0.79645448,2609.3,2609.2,4.45934658]
[1723934886041,0.79645448,2609.3,2609.2,3.54700349]
[1723934886233,0.79645448,2609.3,2609.2,4.45928824]
[1723934886944,0.79645448,2609.3,2609.2,5.96462344]
[1723934890242,0.79645448,2609.3,2609.2,6.31552344]
[1723934891536,0.79645448,2609.3,2609.2,3.54764364]
[1723934891844,0.79645448,2609.3,2609.2,4.45941415]
[1723934892442,0.79645448,2609.3,2609.2,5.96474935]
[1723934892642,0.7964633,2609.3,2609.2,4.45941415]
[1723934892840,0.7964633,2609.3,2609.2,4.45934729]
[1723934893351,0.7964633,2609.3,2609.2,5.96468249]
[1723934894440,0.7964633,2609.3,2609.2,5.96464387]
[1723934896743,0.79645511,2609.3,2609.2,5.96464387]
[1723934898951,0.79645511,2609.3,2609.2,5.96467723]
[1723934900754,0.71379139,2609.3,2609.2,5.96467723]
[1723934901050,0.7964683,2609.3,2609.2,5.96467723]
[1723934902342,0.71379139,2609.3,2609.2,5.96467723]
[1723934902546,0.09228106,2609.3,2609.2,7.40169723]
[1723934902748,0.09228106,2609.3,2609.2,5.89636203]
[1723934903152,0.09228106,2609.3,2609.2,6.60526203]
[1723934904147,0.09228106,2609.3,2609.2,8.61257656]
[1723934904355,0.09228106,2609.3,2609.2,6.60526203]
[1723934905048,0.00959139,2609.3,2609.2,6.60526203]
[1723934905249,0.09227584,2609.3,2609.2,6.60526203]
[1723934906351,0.09227584,2609.3,2609.2,8.61257656]
[1723934909045,0.00959139,2609.3,2609.2,8.61257656]
[1723934909367,0.09230328,2609.3,2609.2,8.61257656]
[1723934909563,0.09230328,2609.3,2609.2,18.41640512]
[1723934910058,0.09230328,2609.3,2609.2,16.59388107]
[1723934910450,0.09230328,2609.3,2609.2,20.42602706]
[1723934911159,0.09230328,2609.3,2609.2,16.59388107]
[1723934911360,0.09230328,2609.3,2609.2,18.41652189]
[1723934912552,0.09230328,2609.3,2609.2,18.41591056]
[1723934913260,0.09234331,2609.3,2609.2,18.41591056]
[1723934913647,0.09234325,2609.3,2609.2,18.41591056]
[1723934914156,0.09234325,2609.3,2609.2,16.59320104]
[1723934914664,0.09234704,2609.3,2609.2,20.42534815]
[1723934915062,0.09234704,2609.3,2609.2,16.59328198]
[1723934915257,0.09234704,2609.3,2609.2,20.42533623]
[1723934915760,0.09234704,2609.3,2609.2,16.59328198]
[1723934916160,0.09234704,2609.3,2609.2,19.80108198]
[1723934916565,0.09234704,2609.3,2609.2,16.59328198]
[1723934916860,0.09234704,2609.3,2609.2,19.80108198]
[1723934917257,0.00959139,2609.3,2609.2,19.80108198]
[1723934917459,0.09234962,2609.3,2609.2,19.80108198]
[1723934921458,0.09235225,2609.3,2609.2,19.80108198]
[1723934921672,0.09235225,2609.3,2609.2,19.80112325]
[1723934922161,0.09235225,2609.3,2609.2,23.63320554]
[1723934922361,0.09235225,2609.3,2609.2,19.80112325]
[1723934922762,0.09235225,2609.3,2609.2,23.63320554]
[1723934922957,0.09235225,2609.3,2609.2,19.80112325]
[1723934924264,0.09235225,2609.3,2609.2,23.63324852]
[1723934924565,0.08276086,2609.3,2609.2,21.62405999]
[1723934924770,0.3467,2609.6,2609.5,1.43685]
[1723934925062,0.3467,2609.6,2609.5,5.96277681]
[1723934925360,4.1787,2609.6,2609.5,5.96277681]
[1723934925667,4.18205123,2609.6,2609.5,5.96277681]
[1723934926055,4.18205123,2609.6,2609.5,5.96265606]
[1723934928370,0.35005123,2609.6,2609.5,5.96265606]
[1723934930665,0.35005123,2609.6,2609.5,5.96266942]
[1723934932670,4.18205123,2609.6,2609.5,5.96266942]
[1723934934570,0.35005123,2609.6,2609.5,5.96266942]
[1723934935265,0.35005123,2609.6,2609.5,5.96264501]
[1723934936663,0.432733,2609.6,2609.5,5.96264501]
[1723934938576,0.35005123,2609.6,2609.5,5.96264501]
[1723934938765,0.432733,2609.6,2609.5,5.96264501]
[1723934939671,4.264733,2609.6,2609.5,5.96264501]
[1723934940378,0.432733,2609.6,2609.5,5.96264501]
[1723934941564,0.43273323,2609.6,2609.5,5.96264501]
[1723934945578,0.43273337,2609.6,2609.5,5.96264501]
[1723934947670,0.43273337,2609.6,2609.5,5.96275492]
[1723934949583,0.43273343,2609.6,2609.5,5.96275492]
[1723934952186,0.43273343,2609.6,2609.5,4.04670246]
[1723934952384,0.43273343,2609.6,2609.5,5.96276063]
[1723934953582,0.35005123,2609.6,2609.5,5.96276063]
[1723934953783,0.43273305,2609.6,2609.5,5.96276063]
[1723934956087,7.7103204,2609.6,2609.5,3.42296966]
[1723934956276,1.43685,2609.5,2609.4,1.00480462]
[1723934956483,1.43691,2609.4,2609.3,1.00480462]
[1723934956681,1.87269182,2609.4,2609.3,1.00480462]
[1723934956901,1.87272114,2609.4,2609.3,1.00480462]
[1723934957098,1.87272114,2609.4,2609.3,2.10780462]
[1723934957392,3.883099,2609.4,2609.3,2.10766891]
[1723934957595,3.80038786,2609.4,2609.3,2.10766891]
[1723934957888,3.88309759,2609.4,2609.3,2.10766891]
[1723934960291,3.88309759,2609.4,2609.3,1.103]
[1723934961491,1.87271973,2609.4,2609.3,1.103]
[1723934961679,1.79001,2609.4,2609.3,1.103]
[1723934961885,1.87271927,2609.4,2609.3,1.103]
[1723934962978,2.23821927,2609.4,2609.3,1.103]
[1723934963381,2.23821927,2609.4,2609.3,2.53996]
[1723934963781,2.23821927,2609.4,2609.3,1.103]
[1723934964189,4.24859713,2609.4,2609.3,1.103]
[1723934964787,8.08059713,2609.4,2609.3,1.103]
[1723934965186,6.07021927,2609.4,2609.3,1.103]
[1723934965388,1.43696,2609.3,2609.2,1.106051]
[1723934965596,1.88726927,2609.3,2609.2,1.106051]
[1723934965890,5.72007251,2609.3,2609.2,1.106051]
[1723934967193,5.72007251,2609.3,2609.2,2.543071]
[1723934967389,5.72007251,2609.3,2609.2,1.106051]
[1723934969500,5.72007251,2609.3,2609.2,2.543071]
[1723934969501,4.28311251,2609.3,2609.2,2.543071]
[1723934969696,3.91551251,2609.3,2609.2,3.91563991]
[1723934970000,3.91548787,2609.3,2609.2,3.91563991]
[1723934973403,0.08268787,2609.3,2609.2,3.91563991]
[1723934973993,3.91547831,2609.3,2609.2,3.91563991]
[1723934974388,3.8328,2609.3,2609.2,3.91563991]
[1723934974604,3.91547831,2609.3,2609.2,3.91563991]
[1723934974902,0.08267831,2609.3,2609.2,2.910971]
[1723934975103,0.08267831,2609.3,2609.2,3.91563991]
[1723934975496,0.08267831,2609.3,2609.2,3.06403991]
[1723934975688,0.08267831,2609.3,2609.2,6.27183991]
[1723934975894,0.08267831,2609.3,2609.2,6.27089193]
[1723934976494,0.08267831,2609.3,2609.2,6.27540309]
[1723934977001,0.08267831,2609.3,2609.2,6.27542583]
[1723934977198,0.08267831,2609.3,2609.2,3.9161742]
[1723934979613,2.35872909,2609.6,2609.4,1.43688]
[1723934979909,0.08267119,2609.5,2609.4,2.53988]
[1723934982101,2.35872909,2609.6,2609.5,1.43685]
[1723934982304,2.44140793,2609.6,2609.5,1.43685]
[1723934982502,2.09640793,2609.6,2609.5,2.53985]
[1723934982710,0.08603007,2609.6,2609.5,2.89315]
[1723934984201,2.09640793,2609.6,2609.5,2.89315]
[1723934985312,2.44640793,2609.6,2609.5,2.89315]
[1723934986309,1.43685,2609.5,2609.4,3.26078]
[1723934986513,1.51954036,2609.5,2609.4,3.26078]
[1723934987313,0.08269036,2609.5,2609.4,3.26078]
[1723934990319,3.79815525,2609.6,2609.5,1.43685]
[1723934990517,3.88082797,2609.6,2609.5,1.43685]
[1723934992414,3.88056929,2609.6,2609.5,1.43685]
[1723934992602,1.87286395,2609.6,2609.5,1.43685]
[1723934994106,3.88092765,2609.6,2609.5,1.43685]
[1723934994309,1.87286395,2609.6,2609.5,1.43685]
[1723934994615,1.43685,2609.5,2609.4,4.26451304]
[1723934994817,3.5277527,2609.5,2609.4,4.26451304]
[1723934995204,2.0909027,2609.5,2609.4,4.26451304]
[1723934995801,2.00823737,2609.5,2609.4,4.26451304]
[1723934996006,2.09090051,2609.5,2609.4,4.26451304]
[1723934996614,2.00823737,2609.5,2609.4,4.26451304]
[1723934996910,3.7984286,2609.6,2609.5,1.43685]
[1723934997211,1.79019123,2609.6,2609.5,1.43685]
[1723934997412,1.87285438,2609.6,2609.5,1.43685]
[1723934998222,1.79019123,2609.6,2609.5,1.43685]
[1723934998404,1.87285433,2609.6,2609.5,1.43685]
[1723934998603,1.87285433,2609.6,2609.5,2.53985]
[1723934999915,1.87285433,2609.6,2609.5,1.43685]
[1723935000516,1.79019123,2609.6,2609.5,2.44059304]
[1723935000816,1.87285018,2609.6,2609.5,1.43685]
[1723935001220,1.8728489,2609.6,2609.5,1.43685]
[1723935001621,1.8728489,2609.6,2609.5,2.44059304]
[1723935003527,1.87285083,2609.6,2609.5,1.43685]
[1723935003916,1.87285083,2609.6,2609.5,2.44059304]
[1723935004127,1.87285083,2609.6,2609.5,1.43685]
[1723935004326,4.38383502,2609.6,2609.5,1.43685]
[1723935005312,1.43685,2609.5,2609.4,3.16151304]
[1723935005517,1.5195096,2609.5,2609.4,3.16151304]
[1723935006227,1.5195096,2609.5,2609.4,2.15777]
[1723935006819,4.03049379,2609.5,2609.4,2.15777]
[1723935007328,1.5195096,2609.5,2609.4,2.15777]
[1723935008029,4.03049379,2609.5,2609.4,2.15777]
[1723935008230,1.5195096,2609.5,2609.4,3.16151304]
[1723935011319,1.43685,2609.5,2609.4,3.16151304]
[1723935011517,4.0304982,2609.5,2609.4,3.16151304]
[1723935011724,1.51951401,2609.5,2609.4,3.16151304]
[1723935011928,1.51951515,2609.5,2609.4,3.16151304]
[1723935012322,4.03049934,2609.5,2609.4,3.16151304]
[1723935013525,1.51951515,2609.5,2609.4,3.16151304]
[1723935015326,4.03049934,2609.5,2609.4,3.16151304]
[1723935015529,3.94783419,2609.5,2609.4,3.16151304]
[1723935015728,3.94783419,2609.5,2609.3,1.00374304]
[1723935015729,1.43691,2609.4,2609.3,1.00374304]
[1723935015926,4.74853468,2609.4,2609.3,1.00374304]
[1723935016233,8.58053468,2609.4,2609.3,1.00374304]
[1723935018022,1.43696,2609.3,2609.2,1.44150116]
[1723935018232,3.52926104,2609.3,2609.2,6.31361617]
[1723935019235,3.52926104,2609.3,2609.2,4.87662617]
[1723935019452,3.52923941,2609.3,2609.2,4.87652415]
[1723935019736,3.52923941,2609.3,2609.2,5.60192415]
[1723935021124,1.51959103,2609.3,2609.2,3.18430498]
[1723935021335,3.52777211,2609.3,2609.2,3.18430498]
[1723935021528,1.51959103,2609.3,2609.2,3.18430498]
[1723935021728,3.52774882,2609.3,2609.2,3.18430498]
[1723935023329,3.52774882,2609.3,2609.2,4.62132498]
[1723935024140,3.52772021,2609.3,2609.2,4.62132498]
[1723935024340,3.5275528,2609.3,2609.2,4.62132498]
[1723935024541,3.52755211,2609.3,2609.2,4.62132498]
[1723935025042,0.08260242,2609.3,2609.2,7.03887619]
[1723935027743,2.51227202,2609.5,2609.4,1.43691]
[1723935027744,2.00800645,2609.5,2609.4,1.43691]
[1723935027936,2.38275768,2609.6,2609.5,1.43685]
[1723935028135,2.46532974,2609.6,2609.5,3.54511626]
[1723935028345,0.45734695,2609.6,2609.5,3.89701626]
[1723935028533,0.45734695,2609.6,2609.5,2.89175]
[1723935029039,0.45734695,2609.6,2609.5,3.89701626]
[1723935029237,0.45734695,2609.6,2609.5,2.89175]
[1723935029437,2.46524075,2609.6,2609.5,3.89701626]
[1723935029839,2.46523045,2609.6,2609.5,3.89701626]
[1723935031732,2.46522731,2609.6,2609.5,3.89701626]
[1723935033848,2.46522731,2609.6,2609.5,2.89175]
[1723935035845,3.902034,2609.6,2609.5,1.78875]
[1723935036050,1.8941505,2609.6,2609.5,1.43685]
[1723935037345,0.4573505,2609.6,2609.5,1.43685]
[1723935037947,1.8941505,2609.6,2609.5,1.43685]
[1723935038844,0.4573505,2609.6,2609.5,1.43685]
[1723935042156,1.8941505,2609.6,2609.5,1.43685]
[1723935044259,1.81155123,2609.6,2609.5,1.43685]
[1723935044455,1.89406039,2609.6,2609.5,1.43685]
[1723935046552,1.43685,2609.5,2609.4,1.103]
[1723935046754,3.52418036,2609.5,2609.4,2.53989]
[1723935049260,3.52415399,2609.5,2609.4,2.53989]
[1723935049859,3.52415399,2609.5,2609.4,1.103]
[1723935050264,1.51933279,2609.5,2609.4,1.103]
[1723935050561,3.52408805,2609.5,2609.4,1.103]
[1723935050866,1.51933279,2609.5,2609.4,1.103]
[1723935051056,3.52409006,2609.5,2609.4,1.103]
[1723935051361,1.51933279,2609.5,2609.4,1.103]
[1723935051563,3.52402034,2609.5,2609.4,1.103]
[1723935052764,3.52402034,2609.5,2609.2,1.00977742]
[1723935052765,1.43691,2609.4,2609.2,1.00977742]
[1723935052961,3.52399344,2609.3,2609.2,0.00451116]
[1723935053161,5.51241481,2609.3,2609.2,0.00451116]
[1723935053363,6.83294279,2609.3,2609.2,0.00451116]
[1723935053557,6.83294279,2609.3,2609.0,0.00574955]
[1723935053558,12.90825481,2609.3,2609.0,0.00574955]
[1723935053867,6.08194,2609.1,2609.0,0.00574955]
[1723935054166,6.16442279,2609.1,2609.0,0.00574955]
[1723935054364,14.99722279,2609.1,2609.0,0.00574955]
[1723935054660,14.99722279,2609.1,2609.0,0.00893696]
[1723935055656,11.78942279,2609.1,2609.0,0.00893696]
[1723935055968,14.99722279,2609.1,2609.0,0.00893696]
[1723935056158,9.99722279,2609.1,2609.0,0.00893696]
[1723935056463,12.49901903,2609.1,2609.0,0.00893696]
[1723935061261,12.41653624,2609.1,2609.0,0.00893696]
[1723935061461,12.49904976,2609.1,2609.0,0.00893696]
[1723935062673,9.99725352,2609.1,2609.0,0.00893696]
[1723935063671,11.99645348,2609.1,2609.0,0.00893696]
[1723935063969,11.99646361,2609.1,2609.0,0.00893696]
[1723935066662,8.78866361,2609.1,2609.0,0.00893696]
[1723935067572,6.78946365,2609.1,2609.0,0.00893696]
[1723935067767,8.78866361,2609.1,2609.0,0.00893696]
[1723935067970,8.70613996,2609.1,2609.0,0.00893696]
[1723935068164,11.99650269,2609.1,2609.0,0.00893696]
[1723935068362,9.99730273,2609.1,2609.0,0.00893696]
[1723935069161,2.95670067,2609.1,2609.0,0.00893696]
[1723935069370,0.08256067,2609.1,2609.0,2.54906696]
[1723935069673,0.3777,2609.3,2609.2,1.43699]
[1723935069674,1.43697,2609.3,2609.2,1.43699]
[1723935069861,1.43694,2609.4,2609.2,2.53999]
[1723935070064,1.43694,2609.4,2609.3,0.3609]
[1723935070281,1.51949345,2609.4,2609.3,0.3609]
[1723935070472,1.51949345,2609.4,2609.3,1.79786]